[Event "Championnat du monde jeunes U10"]
[Date "2024.11.22"]
[White "Lenkov, Stanislav"]
[Black "Munoz Padilla, Andres"]
[WhiteElo "1693"]
[BlackElo "1604"]
[Round "7.48"]
[Result "1-0"]
[TimeControl "5400+30"]

1. e4 {[%clk 1:30:04]} 1... e5 {[%clk 1:30:33]} 2. Nf3 {[%clk 1:28:38]} 2... Nc6
{[%clk 1:29:29]} 3. Bb5 {[%clk 1:25:36]} 3... a6 {[%clk 1:28:25]} 4. Ba4 {[%clk
1:23:54]} 4... Nf6 {[%clk 1:25:29]} 5. d3 {[%clk 1:21:56]} 5... d6 {[%clk
1:22:46]} 6. c4 {[%clk 1:18:09]} 6... Be7 {[%clk 1:14:57]} 7. h3 {[%clk
1:17:41]} 7... O-O {[%clk 1:13:15]} 8. Be3 {[%clk 1:17:09]} 8... Ne8 {[%clk
1:02:36]} 9. Nc3 {[%clk 1:12:32]} 9... f5 {[%clk 0:59:31]} 10. Bxc6 {[%clk
1:07:12]} 10... bxc6 {[%clk 0:59:53]} 11. d4 {[%clk 1:07:10]} 11... fxe4 {[%clk
0:56:58]} 12. Nxe4 {[%clk 1:06:43]} 12... d5 {[%clk 0:57:26]} 13. Nc3 {[%clk
1:03:46]} 13... exd4 {[%clk 0:45:27]} 14. Nxd4 {[%clk 1:01:58]} 14... c5 {[%clk
0:45:52]} 15. Nc6 {[%clk 1:02:19]} 15... Qd6 {[%clk 0:45:02]} 16. Qxd5+ {[%clk
1:02:47]} 16... Qxd5 {[%clk 0:45:04]} 17. Nxe7+ {[%clk 1:03:15]} 17... Kf7
{[%clk 0:43:49]} 18. Nexd5 {[%clk 1:02:21]} 18... Rb8 {[%clk 0:44:09]} 19. Bxc5
{[%clk 1:02:34]} 19... Rg8 {[%clk 0:44:28]} 20. b4 {[%clk 0:59:47]} 20... Bb7
{[%clk 0:43:16]} 21. O-O {[%clk 0:58:26]} 21... Nf6 {[%clk 0:42:50]} 22. Nxc7
{[%clk 0:57:31]} 22... Rbc8 {[%clk 0:39:35]} 23. N7d5 {[%clk 0:57:04]} 23... a5
{[%clk 0:38:41]} 24. a3 {[%clk 0:57:22]} 24... Ra8 {[%clk 0:37:10]} 25. Nxf6
{[%clk 0:57:15]} 25... gxf6 {[%clk 0:37:30]} 26. f3 {[%clk 0:56:31]} 26... axb4
{[%clk 0:37:17]} 27. axb4 {[%clk 0:56:45]} 27... Rxa1 {[%clk 0:37:39]} 28. Rxa1
{[%clk 0:56:08]} 28... Bxf3 {[%clk 0:38:01]} 29. Ra7+ {[%clk 0:56:05]} 29... Ke6
{[%clk 0:38:25]} 30. Ra2 Bb7 {[%clk 0:35:09]} 31. Re2+ {[%clk 0:54:02]} 31...
Kd7 {[%clk 0:35:32]} 32. Nd5 {[%clk 0:54:07]} 32... Kd8 {[%clk 0:33:51]} 33.
Bb6+ {[%clk 0:53:39]} 33... Kd7 {[%clk 0:34:01]} 34. Re7+ {[%clk 0:54:03]} 34...
Kc8 {[%clk 0:34:10]} 35. Rxh7 {[%clk 0:53:55]} 35... Rg6 {[%clk 0:31:48]} 36.
Ne7+ {[%clk 0:53:57]} 36... Kd7 {[%clk 0:32:05]} 37. Nxg6+ {[%clk 0:54:18]}
37... Kc8 {[%clk 0:32:27]} 38. Rxb7 {[%clk 0:54:00]} 38... Kxb7 39. c5 {[%clk
0:54:25]} 39... Kc6 {[%clk 0:33:11]} 40. h4 {[%clk 0:54:45]} 40... Kb5 {[%clk
0:33:35]} 41. h5 {[%clk 0:55:06]} 41... Kxb4 {[%clk 0:33:59]} 42. c6 {[%clk
0:55:24]} 42... Kb5 {[%clk 0:34:24]} 43. c7 {[%clk 0:55:46]} 43... Kxb6 {[%clk
0:34:51]} 44. c8=Q {[%clk 0:56:03]} 44... Ka7 {[%clk 0:35:13]} 45. Qc6 {[%clk
0:55:56]} 45... f5 {[%clk 0:35:32]} 46. h6 {[%clk 0:55:46]} 46... f4 {[%clk
0:35:54]} 47. h7 {[%clk 0:56:00]} 47... f3 {[%clk 0:36:18]} 48. gxf3 {[%clk
0:56:13]} 48... Kb8 {[%clk 0:36:40]} 49. h8=R+ {[%clk 0:56:35]} 49... Ka7 {[%clk
0:37:02]} 50. Ra8# {[%clk 0:56:56]} 1-0

[Variant "Standard"]
[Site "Europe Echecs"]

[Event "Championnat du monde jeunes U10"]
[Date "2024.11.22"]
[White "Thorulsley, Kairaav"]
[Black "von Flottwell, Lionel"]
[WhiteElo "1520"]
[BlackElo "1704"]
[Round "7.6"]
[Result "1-0"]
[TimeControl "5400+30"]

1. d4 {[%clk 1:30:57]} 1... d5 {[%clk 1:30:50]} 2. Nc3 {[%clk 1:31:21]} 2... Nf6
{[%clk 1:31:12]} 3. Bf4 {[%clk 1:31:44]} 3... e6 {[%clk 1:31:28]} 4. e3 {[%clk
1:32:06]} 4... Bb4 {[%clk 1:31:20]} 5. Bd3 {[%clk 1:32:09]} 5... c5 {[%clk
1:31:19]} 6. dxc5 {[%clk 1:31:59]} 6... Nbd7 {[%clk 1:31:29]} 7. Ne2 {[%clk
1:23:09]} 7... a6 {[%clk 1:31:31]} 8. a3 {[%clk 1:22:42]} 8... Bxc5 {[%clk
1:30:50]} 9. Ng3 {[%clk 1:20:48]} 9... h6 {[%clk 1:29:59]} 10. e4 {[%clk
1:20:27]} 10... e5 {[%clk 1:13:03]} 11. Bd2 {[%clk 1:20:20]} 11... Nb6 {[%clk
1:12:56]} 12. exd5 {[%clk 1:15:37]} 12... Nbxd5 {[%clk 1:04:54]} 13. Qe2 {[%clk
1:13:11]} 13... O-O {[%clk 1:00:49]} 14. O-O {[%clk 1:13:28]} 14... Ba7 {[%clk
0:56:27]} 15. Nxd5 {[%clk 1:11:18]} 15... Qxd5 {[%clk 0:54:37]} 16. Bc4 {[%clk
1:04:14]} 16... Qd8 {[%clk 0:52:26]} 17. Rad1 {[%clk 0:58:36]} 17... Ng4 {[%clk
0:50:59]} 18. h3 {[%clk 0:43:49]} 18... Qh4 {[%clk 0:49:27]} 19. Ne4 {[%clk
0:36:46]} 19... Nf6 {[%clk 0:43:29]} 20. Nxf6+ {[%clk 0:35:49]} 20... gxf6
{[%clk 0:42:08]} 21. Bd3 {[%clk 0:34:11]} 21... Kh8 {[%clk 0:39:56]} 22. Qe4
{[%clk 0:32:24]} 22... Qxe4 {[%clk 0:39:52]} 23. Bxe4 {[%clk 0:32:48]} 23... Rg8
{[%clk 0:37:58]} 24. Kh2 {[%clk 0:32:54]} 24... f5 {[%clk 0:36:34]} 25. Bd5
{[%clk 0:32:36]} 25... f4 {[%clk 0:35:13]} 26. Bxf7 {[%clk 0:32:04]} 26... Rg7
{[%clk 0:35:21]} 27. Bd5 {[%clk 0:31:43]} 27... Bf5 {[%clk 0:35:19]} 28. Bc3
{[%clk 0:29:09]} 28... Re8 {[%clk 0:34:38]} 29. Bb3 {[%clk 0:23:32]} 29... Bb8
{[%clk 0:29:02]} 30. Rfe1 {[%clk 0:17:05]} 30... Bc7 {[%clk 0:28:05]} 31. Rd5
{[%clk 0:13:45]} 31... Reg8 {[%clk 0:25:21]} 32. Bxe5 {[%clk 0:11:37]} 32...
Bxe5 {[%clk 0:23:48]} 33. Rdxe5 {[%clk 0:11:48]} 33... Rxg2+ {[%clk 0:23:20]}
34. Kh1 {[%clk 0:11:48]} 34... R8g7 {[%clk 0:20:53]} 35. Rxf5 {[%clk 0:11:04]}
35... Rxf2 {[%clk 0:20:22]} 36. Rg1 {[%clk 0:10:38]} 36... f3 {[%clk 0:17:46]}
37. Rxg7 {[%clk 0:10:40]} 37... Kxg7 {[%clk 0:18:01]} 38. Kg1 {[%clk 0:10:49]}
38... Rg2+ {[%clk 0:17:59]} 39. Kf1 {[%clk 0:11:12]} 39... Rg3 {[%clk 0:18:12]}
40. Kf2 {[%clk 0:11:09]} 40... Rxh3 {[%clk 0:18:10]} 41. Rxf3 {[%clk 0:11:29]}
41... Rh2+ {[%clk 0:18:12]} 42. Kg3 {[%clk 0:11:53]} 42... Rh1 {[%clk 0:18:23]}
43. Rf7+ {[%clk 0:11:40]} 43... Kh8 {[%clk 0:18:10]} 44. Rxb7 {[%clk 0:11:55]}
44... a5 {[%clk 0:18:09]} 45. Rd7 {[%clk 0:11:59]} 45... a4 {[%clk 0:17:16]} 46.
Bxa4 {[%clk 0:12:06]} 46... h5 {[%clk 0:17:27]} 47. Rd4 {[%clk 0:12:29]} 47...
Re1 {[%clk 0:18:00]} 48. Rh4 {[%clk 0:12:33]} 48... Re5 {[%clk 0:17:51]} 49. Kf4
{[%clk 0:12:56]} 49... Ra5 {[%clk 0:17:51]} 50. Be8 {[%clk 0:13:05]} 50... Ra8
{[%clk 0:17:38]} 51. Rxh5+ {[%clk 0:13:20]} 51... Kg7 {[%clk 0:17:20]} 52. Re5
{[%clk 0:13:28]} 52... Kf6 {[%clk 0:17:25]} 53. Re4 {[%clk 0:13:11]} 53... Kg7
{[%clk 0:17:44]} 54. c4 {[%clk 0:13:13]} 54... Kh8 {[%clk 0:18:06]} 55. c5
{[%clk 0:13:30]} 55... Rd8 {[%clk 0:16:39]} 56. c6 {[%clk 0:13:44]} 56... Rd1
{[%clk 0:15:58]} 57. c7 {[%clk 0:13:19]} 57... Rc1 {[%clk 0:16:13]} 58. Bc6
{[%clk 0:13:40]} 58... Rxc6 {[%clk 0:14:16]} 59. Re8+ {[%clk 0:13:40]} 59... Kg7
{[%clk 0:14:26]} 60. c8=Q {[%clk 0:14:00]} 60... Rf6+ {[%clk 0:14:31]} 61. Ke5
{[%clk 0:14:05]} 61... Rf1 {[%clk 0:14:29]} 62. Qg4+ {[%clk 0:13:49]} 62... Kh7
{[%clk 0:14:35]} 63. Re7+ {[%clk 0:13:59]} 63... Kh6 {[%clk 0:14:53]} 64. Qh4+
{[%clk 0:14:18]} 64... Kg6 {[%clk 0:15:10]} 65. Qh7+ {[%clk 0:14:44]} 65... Kg5
{[%clk 0:15:25]} 66. Rg7# {[%clk 0:15:01]} 1-0

[Variant "Standard"]
[Site "Europe Echecs"]

[Event "Championnat du monde jeunes U10"]
[Date "2024.11.22"]
[White "Schettini Acuna, Massimo Matteo"]
[Black "Yrysov, Timur"]
[WhiteElo "1703"]
[BlackElo "1604"]
[Round "7.7"]
[Result "0-1"]
[TimeControl "5400+30"]

1. e4 {[%clk 1:30:57]} 1... c5 {[%clk 1:30:34]} 2. Nf3 {[%clk 1:31:18]} 2... d6
{[%clk 1:30:29]} 3. d4 {[%clk 1:31:37]} 3... cxd4 {[%clk 1:30:20]} 4. Nxd4
{[%clk 1:31:55]} 4... Nf6 {[%clk 1:30:18]} 5. Nc3 {[%clk 1:32:03]} 5... e5
{[%clk 1:29:59]} 6. Bb5+ {[%clk 1:32:24]} 6... Nbd7 {[%clk 1:29:31]} 7. Nde2
{[%clk 1:32:30]} 7... a6 {[%clk 1:29:03]} 8. Bxd7+ {[%clk 1:32:52]} 8... Bxd7
{[%clk 1:26:58]} 9. Bg5 {[%clk 1:31:03]} 9... Be7 {[%clk 1:26:30]} 10. Bxf6
{[%clk 1:31:05]} 10... gxf6 {[%clk 1:24:58]} 11. Ng3 {[%clk 1:24:24]} 11... Rc8
{[%clk 1:21:44]} 12. O-O {[%clk 1:20:15]} 12... b5 {[%clk 1:10:06]} 13. Nd5
{[%clk 1:16:56]} 13... Be6 {[%clk 1:09:33]} 14. b4 {[%clk 1:09:56]} 14... Bxd5
{[%clk 1:06:30]} 15. Qxd5 {[%clk 1:09:56]} 15... Qc7 {[%clk 0:45:43]} 16. h3
{[%clk 1:03:25]} 16... Qc6 {[%clk 0:40:25]} 17. Qxc6+ {[%clk 1:01:16]} 17...
Rxc6 {[%clk 0:40:47]} 18. Rac1 {[%clk 1:00:16]} 18... Kd7 {[%clk 0:39:53]} 19.
Rfd1 {[%clk 0:58:39]} 19... Rhc8 {[%clk 0:39:18]} 20. Rd2 {[%clk 0:57:37]} 20...
Rc4 {[%clk 0:36:34]} 21. c3 {[%clk 0:37:03]} 21... Rxc3 {[%clk 0:33:04]} 22.
Rxc3 {[%clk 0:37:19]} 22... Rxc3 {[%clk 0:33:27]} 23. f3 {[%clk 0:37:06]} 23...
Rc4 {[%clk 0:33:00]} 24. a3 {[%clk 0:35:41]} 24... Rc3 {[%clk 0:31:18]} 25. Ra2
{[%clk 0:35:33]} 25... Bd8 {[%clk 0:30:44]} 26. Nf5 {[%clk 0:34:05]} 26... Bb6+
{[%clk 0:30:17]} 27. Kf1 {[%clk 0:33:35]} 27... Rc1+ {[%clk 0:28:37]} 28. Ke2
{[%clk 0:33:23]} 28... Rg1 {[%clk 0:28:46]} 29. Kd3 {[%clk 0:31:03]} 29... Rc1
{[%clk 0:28:15]} 30. a4 {[%clk 0:30:04]} 30... Rb1 {[%clk 0:22:08]} 31. axb5
{[%clk 0:28:59]} 31... axb5 {[%clk 0:22:25]} 32. Ra6 {[%clk 0:28:30]} 32... Bc7
{[%clk 0:21:50]} 33. Kc3 {[%clk 0:27:32]} 33... Rc1+ {[%clk 0:21:42]} 34. Kb2
{[%clk 0:27:06]} 34... Rg1 {[%clk 0:20:43]} 35. Ne3 {[%clk 0:26:28]} 35... Re1
{[%clk 0:20:50]} 36. Nf5 {[%clk 0:24:29]} 36... Re2+ {[%clk 0:20:36]} 37. Kc3
{[%clk 0:24:01]} 37... Rxg2 {[%clk 0:17:50]} 38. Ra7 {[%clk 0:22:34]} 38... Rf2
{[%clk 0:16:09]} 39. Nh4 {[%clk 0:19:56]} 39... Rh2 {[%clk 0:16:21]} 40. Ra8
{[%clk 0:19:01]} 40... Rxh3 {[%clk 0:16:13]} 41. Nf5 {[%clk 0:19:07]} 41...
Rxf3+ {[%clk 0:16:23]} 42. Kc2 {[%clk 0:19:06]} 42... h5 {[%clk 0:14:42]} 43.
Rf8 {[%clk 0:19:03]} 43... Rf2+ {[%clk 0:07:34]} 44. Kd3 {[%clk 0:18:47]} 44...
Rh2 {[%clk 0:04:22]} 45. Rxf7+ {[%clk 0:19:03]} 45... Kc8 {[%clk 0:04:32]} 46.
Rxf6 {[%clk 0:18:52]} 46... Rh1 {[%clk 0:04:03]} 47. Kd2 {[%clk 0:18:35]} 47...
h4 {[%clk 0:03:50]} 48. Nxd6+ {[%clk 0:18:31]} 48... Bxd6 {[%clk 0:04:09]} 49.
Rxd6 {[%clk 0:18:55]} 49... h3 {[%clk 0:04:33]} 50. Rh6 {[%clk 0:18:29]} 50...
h2 {[%clk 0:04:54]} 51. Ke2 {[%clk 0:18:24]} 51... Ra1 {[%clk 0:04:17]} 52. Rh8+
{[%clk 0:17:58]} 52... Kd7 {[%clk 0:04:41]} 53. Rh7+ {[%clk 0:18:03]} 53... Ke8
{[%clk 0:05:05]} 54. Rh8+ {[%clk 0:17:56]} 54... Kf7 {[%clk 0:05:28]} 55. Rh7+
{[%clk 0:17:40]} 55... Kg8 {[%clk 0:05:52]} 56. Rxh2 {[%clk 0:17:05]} 56... Ra2+
{[%clk 0:06:18]} 57. Kf3 {[%clk 0:17:30]} 57... Rxh2 {[%clk 0:06:42]} 58. Kg4
{[%clk 0:17:55]} 58... Rb2 {[%clk 0:07:05]} 59. Kf5 {[%clk 0:18:17]} 59... Rxb4
{[%clk 0:07:31]} 60. Kxe5 {[%clk 0:18:38]} 60... Rc4 {[%clk 0:07:57]} 61. Kd5
{[%clk 0:18:36]} 61... Rc1 {[%clk 0:08:17]} 62. e5 {[%clk 0:18:36]} 62... b4
{[%clk 0:08:14]} 63. e6 {[%clk 0:18:58]} 63... b3 {[%clk 0:08:32]} 64. e7 {[%clk
0:19:18]} 64... Re1 {[%clk 0:08:58]} 65. e8=N {[%clk 0:19:14]} 65... Rxe8 {[%clk
0:08:39]} 66. Kc4 {[%clk 0:19:37]} 66... b2 {[%clk 0:08:46]} 67. Kc3 {[%clk
0:20:04]} 67... b1=Q {[%clk 0:09:05]} 68. Kd4 0-1

[Variant "Standard"]
[Site "Europe Echecs"]

[Event "Championnat du monde jeunes U10"]
[Date "2024.11.22"]
[White "Makhsatuly, Rakhim"]
[Black "Wu, Chenyu"]
[WhiteElo "1683"]
[BlackElo "1503"]
[Round "7.10"]
[Result "1-0"]
[TimeControl "5400+30"]

1. e4 {[%clk 1:30:59]} 1... e5 {[%clk 1:30:55]} 2. Nf3 {[%clk 1:31:26]} 2... Nc6
{[%clk 1:31:20]} 3. Bb5 {[%clk 1:31:54]} 3... a6 {[%clk 1:31:40]} 4. Ba4 {[%clk
1:32:19]} 4... Nf6 {[%clk 1:32:06]} 5. d3 {[%clk 1:32:46]} 5... b5 {[%clk
1:32:08]} 6. Bb3 {[%clk 1:33:10]} 6... Be7 {[%clk 1:32:06]} 7. O-O {[%clk
1:32:23]} 7... O-O {[%clk 1:32:22]} 8. a4 {[%clk 1:32:00]} 8... b4 {[%clk
1:32:06]} 9. c3 {[%clk 1:30:52]} 9... d6 {[%clk 1:31:42]} 10. Nbd2 {[%clk
1:27:57]} 10... a5 {[%clk 1:30:01]} 11. Re1 {[%clk 1:25:36]} 11... Be6 {[%clk
1:28:47]} 12. Bxe6 {[%clk 1:24:37]} 12... fxe6 {[%clk 1:29:03]} 13. Nf1 {[%clk
1:24:15]} 13... Nh5 {[%clk 1:23:57]} 14. d4 {[%clk 1:20:43]} 14... bxc3 {[%clk
1:16:05]} 15. bxc3 {[%clk 1:20:32]} 15... exd4 {[%clk 1:10:45]} 16. cxd4 {[%clk
1:20:11]} 16... d5 {[%clk 1:08:43]} 17. e5 {[%clk 1:19:41]} 17... Nf4 {[%clk
1:07:04]} 18. Bxf4 {[%clk 1:18:27]} 18... Rxf4 {[%clk 1:07:03]} 19. Qc1 {[%clk
1:18:53]} 19... Rxf3 {[%clk 1:03:04]} 20. Qxc6 {[%clk 1:16:21]} 20... Rf4 {[%clk
0:59:19]} 21. Qxe6+ {[%clk 1:16:22]} 21... Kh8 {[%clk 0:59:23]} 22. Red1 {[%clk
1:14:44]} 22... Rb8 {[%clk 0:51:28]} 23. Ne3 {[%clk 1:14:25]} 23... Rb2 {[%clk
0:41:20]} 24. f3 {[%clk 1:13:49]} 24... Bh4 {[%clk 0:38:31]} 25. Qxd5 {[%clk
0:57:59]} 25... Qxd5 {[%clk 0:37:18]} 26. Nxd5 {[%clk 0:58:21]} 26... Bf2+
{[%clk 0:37:14]} 27. Kf1 {[%clk 0:57:55]} 27... Rxd4 {[%clk 0:37:15]} 28. e6
{[%clk 0:57:05]} 28... Rxd1+ {[%clk 0:33:19]} 29. Rxd1 {[%clk 0:57:26]} 29...
Kg8 {[%clk 0:33:08]} 30. Nxc7 {[%clk 0:57:08]} 30... Bh4 {[%clk 0:33:02]} 31. g3
{[%clk 0:53:13]} 31... Bf6 {[%clk 0:26:34]} 32. Nd5 {[%clk 0:53:16]} 32... Rxh2
{[%clk 0:22:52]} 33. Nxf6+ {[%clk 0:53:32]} 33... gxf6 {[%clk 0:22:57]} 34. Rd8+
{[%clk 0:53:53]} 34... Kg7 {[%clk 0:23:07]} 35. e7 {[%clk 0:54:18]} 35... Rh1+
{[%clk 0:23:21]} 36. Kf2 {[%clk 0:54:41]} 36... Rh2+ {[%clk 0:23:42]} 37. Kg1
{[%clk 0:54:57]} 37... Re2 {[%clk 0:24:03]} 38. e8=Q {[%clk 0:55:23]} 38... Rxe8
{[%clk 0:24:24]} 39. Rxe8 {[%clk 0:55:46]} 39... Kf7 {[%clk 0:24:52]} 40. Ra8
{[%clk 0:56:09]} 40... Ke7 {[%clk 0:24:55]} 41. Rxa5 {[%clk 0:56:34]} 41... Ke6
{[%clk 0:25:15]} 42. Rb5 {[%clk 0:56:59]} 42... f5 {[%clk 0:25:40]} 43. a5
{[%clk 0:57:25]} 43... f4 {[%clk 0:26:05]} 44. a6 {[%clk 0:57:52]} 44... fxg3
{[%clk 0:26:28]} 45. a7 {[%clk 0:58:19]} 45... g2 {[%clk 0:26:52]} 46. a8=Q
{[%clk 0:58:35]} 46... Kf6 {[%clk 0:27:19]} 47. Qc6+ {[%clk 0:58:56]} 47... Kf7
{[%clk 0:27:17]} 48. Rb7+ {[%clk 0:59:21]} 1-0

[Variant "Standard"]
[Site "Europe Echecs"]

[Event "Championnat du monde jeunes U10"]
[Date "2024.11.23"]
[White "Shogdzhiev, Roman"]
[Black "Llari, Marc"]
[WhiteElo "2202"]
[BlackElo "2201"]
[Round "8.1"]
[Result "0-1"]
[TimeControl "5400+30"]

1. e4 {[%clk 1:30:59]} 1... e5 {[%clk 1:30:55]} 2. Nf3 {[%clk 1:31:26]} 2... Nc6
{[%clk 1:31:22]} 3. Bc4 {[%clk 1:31:52]} 3... Nf6 {[%clk 1:31:47]} 4. d3 {[%clk
1:32:19]} 4... d5 {[%clk 1:32:12]} 5. exd5 {[%clk 1:32:43]} 5... Nxd5 {[%clk
1:32:36]} 6. O-O {[%clk 1:32:24]} 6... Bg4 {[%clk 1:32:57]} 7. Re1 {[%clk
1:30:44]} 7... Qd6 {[%clk 1:33:07]} 8. d4 {[%clk 1:15:39]} 8... O-O-O {[%clk
1:31:12]} 9. dxe5 {[%clk 1:09:44]} 9... Nxe5 {[%clk 1:27:42]} 10. Qxd5 {[%clk
1:05:22]} 10... Bxf3 {[%clk 1:27:26]} 11. Qxe5 {[%clk 1:05:04]} 11... Qxe5
{[%clk 1:27:42]} 12. Rxe5 {[%clk 1:05:33]} 12... Rd1+ {[%clk 1:28:01]} 13. Bf1
{[%clk 1:06:02]} 13... Rxc1 {[%clk 1:27:41]} 14. gxf3 {[%clk 1:06:24]} 14... Bd6
{[%clk 1:27:50]} 15. Re3 {[%clk 0:57:37]} 15... h5 {[%clk 1:12:36]} 16. Kg2
{[%clk 0:45:18]} 16... h4 {[%clk 1:11:19]} 17. h3 {[%clk 0:44:20]} 17... Rh5
{[%clk 1:09:56]} 18. f4 {[%clk 0:42:52]} 18... Bxf4 {[%clk 1:08:58]} 19. Re7
{[%clk 0:32:06]} 19... Rg5+ {[%clk 1:05:22]} 20. Kf3 {[%clk 0:31:38]} 20... Bd6
{[%clk 1:04:40]} 21. Rxf7 {[%clk 0:29:57]} 21... Rxf1 {[%clk 1:04:38]} 22. c3
{[%clk 0:26:37]} 22... Rgg1 {[%clk 1:04:29]} 23. b3 {[%clk 0:26:58]} 23... b5
{[%clk 1:04:10]} 24. Rf5 {[%clk 0:27:17]} 24... a6 {[%clk 1:04:05]} 25. a4
{[%clk 0:27:35]} 25... Rxb1 {[%clk 1:04:04]} 26. Rxb1 {[%clk 0:28:04]} 26...
Rxb1 {[%clk 1:04:26]} 27. axb5 {[%clk 0:28:29]} 27... a5 {[%clk 1:04:35]} 28. c4
{[%clk 0:28:24]} 28... Rxb3+ {[%clk 1:04:50]} 29. Ke4 {[%clk 0:28:50]} 29... a4
{[%clk 1:04:52]} 30. c5 {[%clk 0:29:15]} 30... Rxb5 {[%clk 1:05:10]} 31. Rf7
{[%clk 0:29:38]} 31... Rxc5 {[%clk 1:05:33]} 32. Rxg7 {[%clk 0:30:04]} 32... a3
{[%clk 1:05:41]} 33. Rg8+ {[%clk 0:30:27]} 33... Kb7 {[%clk 1:06:06]} 34. Rg1
{[%clk 0:30:50]} 34... a2 {[%clk 1:06:31]} 35. Ra1 {[%clk 0:31:18]} 35... Ra5
{[%clk 1:06:56]} 36. f4 {[%clk 0:31:41]} 36... Ra4+ {[%clk 1:07:24]} 37. Kf3
{[%clk 0:32:00]} 37... Bxf4 {[%clk 1:07:48]} 38. Rxa2 {[%clk 0:32:21]} 38...
Rxa2 {[%clk 1:08:14]} 39. Kxf4 {[%clk 0:32:43]} 39... Rg2 {[%clk 1:08:39]} 40.
Kf3 {[%clk 0:33:09]} 40... Rg3+ {[%clk 1:09:05]} 41. Kf4 {[%clk 0:33:36]} 41...
c5 {[%clk 1:09:31]} 42. Ke4 {[%clk 0:34:02]} 42... c4 {[%clk 1:09:58]} 43. Kd4
{[%clk 0:34:28]} 43... c3 {[%clk 1:10:25]} 44. Kc4 {[%clk 0:34:56]} 44... c2
{[%clk 1:10:51]} 45. Kb4 {[%clk 0:35:23]} 45... c1=Q {[%clk 1:11:13]} 46. Kb5
{[%clk 0:35:50]} 46... Rb3+ {[%clk 1:11:34]} 47. Ka4 {[%clk 0:36:17]} 47... Qa3#
{[%clk 1:11:59]} 0-1

[Variant "Standard"]
[Site "Europe Echecs"]

[Event "Championnat du monde jeunes U10"]
[Date "2024.11.23"]
[White "Advik Amit Agrawal"]
[Black "Zhang, Junyi"]
[WhiteElo "1982"]
[BlackElo "2061"]
[Round "8.2"]
[Result "1-0"]
[TimeControl "5400+30"]

1. e4 c5 2. Nf3 e6 3. b3 {[%clk 1:30:31]} 3... Nc6 {[%clk 1:31:44]} 4. Bb2
{[%clk 1:30:35]} 4... a6 {[%clk 1:32:07]} 5. c4 {[%clk 1:30:56]} 5... d6 {[%clk
1:31:14]} 6. d4 {[%clk 1:30:42]} 6... cxd4 {[%clk 1:31:42]} 7. Nxd4 {[%clk
1:31:00]} 7... Nf6 {[%clk 1:32:10]} 8. Bd3 {[%clk 1:29:17]} 8... Be7 {[%clk
1:31:58]} 9. O-O {[%clk 1:29:30]} 9... O-O {[%clk 1:32:19]} 10. Nd2 {[%clk
1:29:00]} 10... Bd7 {[%clk 1:27:55]} 11. Qe2 {[%clk 1:27:58]} 11... Rc8 {[%clk
1:25:14]} 12. N2f3 {[%clk 1:27:13]} 12... Nxd4 {[%clk 1:22:13]} 13. Nxd4 {[%clk
1:27:26]} 13... e5 {[%clk 1:22:13]} 14. Nf5 {[%clk 1:25:52]} 14... Bxf5 {[%clk
1:20:18]} 15. exf5 {[%clk 1:26:21]} 15... Re8 {[%clk 1:20:00]} 16. Rad1 {[%clk
1:23:34]} 16... Bf8 {[%clk 1:18:17]} 17. Rfe1 {[%clk 1:20:19]} 17... Qa5 {[%clk
1:15:03]} 18. Bb1 {[%clk 1:17:42]} 18... b5 {[%clk 1:13:47]} 19. cxb5 {[%clk
1:16:45]} 19... axb5 {[%clk 1:14:04]} 20. Qf3 {[%clk 1:13:08]} 20... Qc7 {[%clk
1:09:42]} 21. g4 {[%clk 1:09:53]} 21... Qc6 {[%clk 1:04:51]} 22. Qg3 {[%clk
1:09:47]} 22... Qb6 {[%clk 1:01:38]} 23. h3 {[%clk 1:09:04]} 23... Qb7 {[%clk
0:54:38]} 24. h4 {[%clk 1:06:29]} 24... Rc5 {[%clk 0:45:06]} 25. Bc1 {[%clk
1:02:17]} 25... Rd5 {[%clk 0:43:09]} 26. Rxd5 {[%clk 1:00:32]} 26... Qxd5 {[%clk
0:42:48]} 27. g5 {[%clk 1:00:26]} 27... Nd7 {[%clk 0:40:04]} 28. Be4 {[%clk
0:59:51]} 28... Qd4 {[%clk 0:39:39]} 29. Bc6 {[%clk 0:59:08]} 29... Qb4 {[%clk
0:37:25]} 30. Rd1 {[%clk 0:58:21]} 30... Rd8 {[%clk 0:37:31]} 31. Be3 {[%clk
0:56:44]} 31... Nc5 {[%clk 0:36:22]} 32. Bd5 {[%clk 0:56:55]} 32... Nd7 {[%clk
0:28:16]} 33. h5 {[%clk 0:55:51]} 33... Rc8 {[%clk 0:22:57]} 34. f6 {[%clk
0:52:33]} 34... Kh8 {[%clk 0:12:07]} 35. fxg7+ {[%clk 0:52:33]} 35... Bxg7
{[%clk 0:12:12]} 36. Qh3 {[%clk 0:52:47]} 36... Rd8 {[%clk 0:11:35]} 37. h6
{[%clk 0:53:04]} 37... Bf8 {[%clk 0:11:45]} 38. Qf5 {[%clk 0:52:58]} 38... Be7
{[%clk 0:08:43]} 39. Be4 {[%clk 0:53:19]} 39... Nf8 {[%clk 0:08:19]} 40. Qxf7
{[%clk 0:53:38]} 40... Qxe4 {[%clk 0:08:02]} 41. Qg7# {[%clk 0:53:52]} 1-0

[Variant "Standard"]
[Site "Europe Echecs"]